Cogmind - Beta 16.1 @@@ ROGUE MODE // 2026.02.09 @ 20:44:28 // Winter2019/RPGLIKE Player: Gallgagger Result: Self-destructed Performance ------------- Evolutions (5) 2500 Regions Visited (4) 800 Robots Destroyed (46) 230 Value Destroyed (1541) 1541 Prototype IDs (15) 300 Alien Tech Used (0) 0 Bonus (3206) 3206 TOTAL SCORE: 8577 Bonus ------- Triggered High Security 500 High Alert Combat Kills 76 Follower Combat Kills 2630 Cogmind --------- Core Integrity 394/600 Matter 15/1050 Energy 160/160 System Corruption 0% Temperature Cool (0) Movement Hovering (53) Location -5/Factory Parts ------- > --- POWER (2) -------- Light Nuclear Core > --- PROPULSION (6) --- Armored Wheel Improved Hover Unit Antigrav System Antigrav System Antigrav System Combat Gravmag System > --- UTILITY (5) ------ Improved Matter Compressor Advanced Weight Redist. System Triangulator Seismic Detector > --- WEAPON (5) ------- 1B-0RG's Assimilator > --- INVENTORY (3) ---- Wheel Peak State ------------ > --- POWER ------------ Light Nuclear Core > --- PROPULSION ------- Armored Wheel Improved Hover Unit Antigrav System Antigrav System Antigrav System Combat Gravmag System > --- UTILITY ---------- Improved Matter Compressor Advanced Weight Redist. System Triangulator Seismic Detector > --- WEAPON ----------- 1B-0RG's Assimilator > --- INVENTORY -------- Protomatter Protomatter Wheel [Rating: 112] Favorites ----------- Power Light Nuclear Core Engine Light Ion Engine Power Core Light Nuclear Core Propulsion Wheel Wheel Wheel Hover Unit Antigrav System Flight Unit Flight Unit Utility Seismic Detector Device Seismic Detector Storage Improved Matter Compressor Weapon 1B-0RG's Assimilator Energy Gun Particle Gun Ballistic Gun Heavy Assault Rifle Special Weapon Mining Laser Special Melee Weapon 1B-0RG's Assimilator Build | -11 -10 -10 -7 -5 ------- Run | Yrd Mat Sub Rec Fac Slots Evolved 14 | 4 3 1 1 5 Power 1 | 1 . . . . Propulsion 5 | 1 1 . 1 2 Utility 4 | 1 . . . 3 Weapon 4 | 1 2 1 . . Parts Attached 31 | 5 9 7 1 9 Power 3 | 2 1 . . . Engine 2 | 2 . . . . Core 1 | . 1 . . . Reactor . | . . . . . Propulsion 14 | . 3 4 1 6 Treads . | . . . . . Leg . | . . . . . Wheel 5 | . . 3 1 1 Hover 5 | . . . . 5 Flight 4 | . 3 1 . . Utility 5 | 1 1 . . 3 Device 4 | 1 1 . . 2 Storage 1 | . . . . 1 Processor . | . . . . . Hackware . | . . . . . Protection . | . . . . . Artifact . | . . . . . Weapon 9 | 2 4 3 . . Energy Gun 2 | . 1 1 . . Energy Cannon . | . . . . . Ballistic Gun 5 | 2 2 1 . . Ballistic Cannon . | . . . . . Launcher . | . . . . . Special Weapon 1 | . 1 . . . Impact Weapon . | . . . . . Slashing Weapon . | . . . . . Piercing Weapon . | . . . . . Special Melee Weapon 1 | . . 1 . . Unidentified Prototypes 2 | . . 1 . 1 Parts Lost . | . . . . . Power . | . . . . . Propulsion . | . . . . . Utility . | . . . . . Weapon . | . . . . . Highest Loss Streak . | . . . . . To Critical Strikes . | . . . . . Average Backups 1 | . . 1 2 1 Power . | . . . . . Propulsion 1 | . . 1 2 1 Utility . | . . . . . Weapon . | . . . . . Tool/Special . | . . . . . Unused Backups . | . . . . . Power . | . . . . . Propulsion . | . . . . . Utility . | . . . . . Weapon . | . . . . . Tool/Special . | . . . . . Average Slot Usage (%) 67 | . 84 68 59 64 Engine 1 | . 9 . . . Core 6 | . 1 8 7 5 Wheel 16 | . . 14 28 19 Hover 2 | . . . . 8 Flight 8 | . 25 10 . 2 Device 16 | . 20 16 15 18 Energy Gun 2 | . 5 5 . . Ballistic Gun 6 | . 19 9 . . Special Melee Weapon 4 | . . 4 7 5 Peak Build Rating 112 | 6 17 79 78 112 Average Rating 60 | 3 11 47 77 92 On Entrance 35 | . 6 17 76 78 Avg Prop Armor Cover (%) 3 | . . 2 3 5 Naked Turns . | . . . . . Heaviest Build 66 | 9 17 62 62 66 Greatest Support 78 | 8 17 45 37 78 Greatest Overweight (x) 2 | 1 . 2 2 1 Average Overweight (x) . | . . . 1 . Largest Inventory Capacity 3 | 1 2 2 2 3 Average Capacity 2 | . 1 2 2 2 Most Carried 3 | 1 2 2 2 3 Average Carried 1 | . 1 1 2 1 Final Capacity 3 | 1 2 2 2 3 Final Carried 2 | 1 2 2 2 1 Class Distribution -------------------- 44% | Scavenger-Mutant 23% | Scavenger-Gunner 21% | Commander-Mutant 10% | Mutant Dominant Class ---------------- Mutant | -10/Materials Scavenger-Gunner | -10/Subcaves Commander-Mutant | -7/Recycling Scavenger-Mutant | -5/Factory Resources | -11 -10 -10 -7 -5 ----------- Run | Yrd Mat Sub Rec Fac Matter Collected 8892 | 286 489 944 2110 5063 Remotely . | . . . . . Salvage Created 1379 | 91 908 380 . . Parts 99 | 4 52 43 . . Haulers Intercepted . | . . . . . Recyclers Shooed 1 | 1 . . . . Parts Field Recycled . | . . . . . Retrieved Matter . | . . . . . Parts Self-Destructed 23 | . . 23 . . Prevented . | . . . . . Parts Restored . | . . . . . Kills | -11 -10 -10 -7 -5 ------- Run | Yrd Mat Sub Rec Fac Combat Hostiles Destroyed 41 | . 26 15 . . Guns 41 | . 26 15 . . Classes Destroyed 8 | 2 5 1 . . Worker 1 | . 1 . . . Tunneler 1 | 1 . . . . Recycler 2 | 1 1 . . . Watcher 1 | . 1 . . . Swarmer 8 | . 5 3 . . Grunt 21 | . 19 2 . . Sentry 1 | . . 1 . . Subdweller 11 | . 2 9 . . Best Kill Streak 3 | 2 3 2 . . Combat Bots Only 3 | . 3 2 . . Max Kills in Single Turn 2 | 1 1 2 . . Gunslinging 1 | . . 1 . . Exploded . | . . . . . Melee . | . . . . . Uniques/NPCs Destroyed . | . . . . . Combat | -11 -10 -10 -7 -5 -------- Run | Yrd Mat Sub Rec Fac Hostile Shots Fired 254 | . 105 71 11 67 Missed 104 | . 44 28 6 26 Hits 150 | . 61 43 5 41 Projectile 150 | . 61 43 5 41 Critical Strikes 3 | . . 1 . 2 Damage Taken 2730 | . 685 804 151 1090 Core 2248 | . 542 656 125 925 Absorbed by Shields . | . . . . . Redirected to Core 1660 | . 454 519 93 594 Regen/Repaired (Parts) 123 | . . 13 21 89 Core Remaining (%) 97 | 100 . . 94 . Volleys Fired 148 | 6 77 65 . . Largest 3 | 2 3 3 . . Hottest 185 | 40 185 111 . . Shots Fired 316 | 12 167 137 . . Gun 315 | 12 166 137 . . Cannon . | . . . . . Launcher . | . . . . . Special 1 | . 1 . . . Kinetic 226 | 12 128 86 . . Thermal 90 | . 39 51 . . Explosive . | . . . . . Electromagnetic . | . . . . . Robot Hit Streak 24 | 8 24 14 . . Robot Miss Streak 3 | 1 3 2 . . Penetration Max . | . . . . . Secondary Targets 3 | . . 3 . . Max Gunslinging Chain 1 | . . 1 . . Shots Hit Robots 203 | 9 109 85 . . Core Hits 77 | 3 45 29 . . Critical Kills 1 | . 1 . . . Critical Parts Destroyed . | . . . . . Critical Strikes 5 | . 5 . . . Burn 4 | . 4 . . . Destroy 1 | . 1 . . . Melee Attacks . | . . . . . Impact . | . . . . . Slashing . | . . . . . Piercing . | . . . . . Sneak Attacks . | . . . . . Combat Hostiles . | . . . . . Follow-up Attacks . | . . . . . Damage Inflicted 2933 | 102 1522 1309 . . Guns 2933 | 102 1522 1309 . . Cannons . | . . . . . Explosions . | . . . . . Melee . | . . . . . Ramming . | . . . . . Kinetic 2114 | 102 1028 984 . . Thermal 819 | . 494 325 . . Explosive . | . . . . . Electromagnetic . | . . . . . Impact . | . . . . . Slashing . | . . . . . Piercing . | . . . . . Highest Corruption 2 | . 1 1 2 . Average Corruption 1 | . 1 1 1 . Corruption Purged . | . . . . . Corruption Blocked . | . . . . . Effects 33 | . 7 15 11 . Message Errors 12 | . 3 5 4 . Matter Fused 9 | . 1 6 2 . Heat Flow Errors 2 | . 1 . 1 . Energy Discharges 6 | . 2 1 3 . Data Loss (minor) 2 | . . 2 . . Data Loss (major) 1 | . . . 1 . Misfires 1 | . . 1 . . Overload Shots . | . . . . . Overflow Damage . | . . . . . Projectiles . | . . . . . Explosions . | . . . . . Melee . | . . . . . Knockbacks . | . . . . . Impact . | . . . . . Kinetic . | . . . . . Secondary . | . . . . . Self-Inflicted Damage . | . . . . . Shots . | . . . . . Rammed . | . . . . . Targets Rammed . | . . . . . Kicked . | . . . . . Crushed . | . . . . . Highest Temperature 210 | 6 210 . 74 . Average Temperature 53 | 6 53 . 50 . Received Heat Transfer 675 | . 276 192 33 174 Siege Activations . | . . . . . Martial Activations . | . . . . . Shielding Activations . | . . . . . Robots Disrupted . | . . . . . Combat Hostiles . | . . . . . Robots Corrupted . | . . . . . Combat Hostiles . | . . . . . Parts Fried . | . . . . . Impact Corruptions . | . . . . . Robots Melted . | . . . . . Combat Hostiles . | . . . . . Parts Melted 7 | . 5 2 . . Heat Transferred 2147 | . 1443 704 . . Parts Sabotaged . | . . . . . Parts Stolen . | . . . . . Parts Stripped . | . . . . . Power Chain Reactions . | . . . . . Alert | -11 -10 -10 -7 -5 ------- Run | Yrd Mat Sub Rec Fac Maximum Alert Level 5 | . 2 . . 5 Low Security (%) 50 | 100 46 . 100 3 Level 1 13 | . 16 . . 24 Level 2 13 | . 37 . . 11 Level 3 3 | . . . . 8 Level 4 5 | . . . . 14 Level 5 5 | . . . . 13 High Security 9 | . . . . 23 Max Security . | . . . . . Peak Influence 2040 | 10 643 . 54 2040 Initial 200 | . . . . 200 Average 475 | 1 262 . 2 1074 Influence Increases 4199 | 10 987 244 98 2860 Destroy 0b10 Robot/C 2000 | . 480 160 80 1280 Destroy 0b10 Robot/NC 65 | 10 15 . . 40 Destroy Leader 310 | . 102 20 . 188 Allied During Kill 876 | . . 4 17 855 Successful Hack 11 | . 11 . . . Select Force Hacks 210 | . 210 . . . Disable Machine 30 | . 15 . . 15 Destroy Structure 47 | . 4 . 1 42 Advance Influence 200 | . . . . 200 Partial Spotted 15 | . 15 . . . Lose Combat Pursuer 435 | . 135 60 . 240 Influence Decreases 2179 | 10 362 869 98 840 Entered New Map 301 | . . 301 . . Time Decay 1468 | 10 362 548 58 490 Lost Ally 410 | . . 20 40 350 Squads Dispatched 37 | . 10 . . 27 Investigation 12 | . 9 . . 3 Extermination 3 | . . . . 3 Reinforcement 5 | . 1 . . 4 Assault 16 | . . . . 16 Garrison 1 | . . . . 1 Intercept . | . . . . . Searches Triggered . | . . . . . Construction Impeded 1 | . . . . 1 Haulers Reinforced . | . . . . . Active Scanning Responses . | . . . . . Cargo Convoy Interrupts . | . . . . . Stealth | -11 -10 -10 -7 -5 --------- Run | Yrd Mat Sub Rec Fac Distress Signals 5 | . 2 . . 3 Communications Jammed . | . . . . . Distress Signals . | . . . . . Times Spotted 169 | . 37 27 10 95 Peak Tracking Total 16 | . 7 6 4 16 Tactical Retreats 17 | . 6 2 . 9 Traps | -11 -10 -10 -7 -5 ------- Run | Yrd Mat Sub Rec Fac Traps Triggered 3 | . 2 . . 1 Indirectly . | . . . . . Trap Hack Attempts . | . . . . . Triggered . | . . . . . Disarmed . | . . . . . Reprogrammed . | . . . . . Reused . | . . . . . Traps Extracted . | . . . . . Installed . | . . . . . Triggered . | . . . . . Machines | -11 -10 -10 -7 -5 ---------- Run | Yrd Mat Sub Rec Fac Machines Disabled 2 | . 1 . . 1 Max in Single Turn 1 | . 1 . . . Garrison Access 1 | . . . . 1 Machines Repaired . | . . . . . Machines Dismantled . | . . . . . Machines Sabotaged 3 | . 3 . . . Overloaded Fab Kills . | . . . . . Hacking | -11 -10 -10 -7 -5 --------- Run | Yrd Mat Sub Rec Fac Machines Accessed 19 | . 9 2 6 2 Terminals 6 | . 6 . . . Fabricators 1 | . . . . 1 Repair Stations 1 | . 1 . . . Recycling Units 7 | . 2 . 5 . Scanalyzers . | . . . . . Garrison Access 1 | . . . . 1 Total Hacks 47 | . 21 5 18 3 Successful 24 | . 12 5 6 1 Failed 23 | . 9 . 12 2 Catastrophic 4 | . . . 3 1 Database Lockouts . | . . . . . Manual 19 | . 19 . . . Terminals 18 | . 18 . . . Fabricators 2 | . . . . 2 Repair Stations 1 | . 1 . . . Recycling Units 18 | . 2 . 16 . Scanalyzers . | . . . . . Garrison Access 1 | . . . . 1 Terminal Hacks 10 | . 3 5 2 . Record 4 | . . 4 . . Robot Analysis 2 | . 2 . . . Branch Access Points 1 | . 1 . . . Proto ID Catalog 1 | . . 1 . . Release Object 2 | . . . 2 . Fabricator Hacks . | . . . . . Repair Station Hacks . | . . . . . Recycling Unit Hacks 4 | . . . 4 . Retrieve Components 4 | . . . 4 . Scanalyzer . | . . . . . Garrison Access Hacks 1 | . . . . 1 Seal Access 1 | . . . . 1 Unauthorized Hacks 9 | . 9 . . . Terminals 6 | . 6 . . . Botnet 1 | . 1 . . . Sabotage 5 | . 5 . . . Fabricators . | . . . . . Repair Stations 1 | . 1 . . . Patch 1 | . 1 . . . Recycling Units 2 | . 2 . . . Tunnel 2 | . 2 . . . Scanalyzers . | . . . . . Garrison Access . | . . . . . Data Cores Recovered 1 | . . . . 1 Used . | . . . . . Hacking Detections 9 | . 3 . 5 1 Full Trace Events 6 | . 1 . 4 1 Feedback Events . | . . . . . Feedback Blocked . | . . . . . Robot Schematics Acquired . | . . . . . Robots Built . | . . . . . Authchips . | . . . . . Time . | . . . . . Total Robot Build Rating . | . . . . . Part Schematics Acquired . | . . . . . Parts Built . | . . . . . Authchips . | . . . . . Time . | . . . . . Total Part Build Rating . | . . . . . Part Studies Acquired . | . . . . . Parts Repaired . | . . . . . Time . | . . . . . Parts Recycled . | . . . . . Recycled Matter . | . . . . . Retrieved Matter . | . . . . . Retrieved Components 11 | . . . 11 . Parts Scanalyzed . | . . . . . Part Schematics Acquired . | . . . . . Parts Damaged . | . . . . . Bothacking | -11 -10 -10 -7 -5 ------------ Run | Yrd Mat Sub Rec Fac Used RIF Installer . | . . . . . Robots Hacked . | . . . . . Non-combat . | . . . . . Combat . | . . . . . Robot Hacks Applied . | . . . . . Relay Couplers Released . | . . . . . Fabnet Peak Effective % . | . . . . . Robots Rewired 10 | . . . 10 . Allies Hacked 3 | . . . . 3 Hacks Repelled . | . . . . . Allies | -11 -10 -10 -7 -5 -------- Run | Yrd Mat Sub Rec Fac Total Allies 10 | . . . 10 . Largest Group 10 | . . . 10 6 Highest-Rated Group 169 | . . . 169 106 Highest-Rated Ally 34 | . . . 34 34 Total Orders 6 | . . . 6 . GUARD 6 | . . . 6 . Ally Attacks 372 | . . 6 30 336 Total Damage 10365 | . . 113 897 9355 Kills 82 | . . 2 8 72 Allies Corrupted . | . . . . . Allies Melted . | . . . . . Borg Created 28 | . . 5 9 14 Largest Collective 8 | . . 4 7 8 Intel | -11 -10 -10 -7 -5 ------- Run | Yrd Mat Sub Rec Fac Active Infowar (turns) 6441 | 16 1026 2118 1605 1676 Terrain 3247 | 16 1026 1011 328 866 Seismic 6288 | . 889 2118 1605 1676 Triangulation 923 | . . . . 923 Robot Analysis Total 2 | . 2 . . . Derelict Logs Recovered 2 | . . 2 . . Drone Launches . | . . . . . Drone Recoveries . | . . . . . Exploration | -11 -10 -10 -7 -5 ------------- Run | Yrd Mat Sub Rec Fac Turns Passed 6480 | 55 1026 2118 1605 1676 Spaces Moved 6984 | 54 1267 2673 1223 1767 Core 158 | 54 104 . . . Treads . | . . . . . Legs . | . . . . . Wheels 3583 | . . 1221 1223 1139 Hover 628 | . . . . 628 Flight 2615 | . 1163 1452 . . Fastest Speed 34 | 50 34 34 98 53 Average Speed 70 | 50 36 65 100 80 Slowest Speed 110 | 100 50 110 110 98 Overloaded Moves . | . . . . . Propulsion Burnouts . | . . . . . Robots Hopped 16 | . 15 1 . . Potential Cave-ins . | . . . . . Cave-ins Triggered . | . . . . . Exploration Rate (%) 64 | 3 97 93 98 33 Regions Visited 4 Branch Regions 2 Pre-discovered Areas 4 | . 2 2 . . Known Exits Taken 1 | . . 1 . . Unknown Exits Taken 3 | 1 1 . 1 . Scrap Searched 5 | . . 5 . . Spaces Dug . | . . . . . Terrain Destroyed . | . . . . . Melee . | . . . . . Projectile . | . . . . . AOE . | . . . . . Terrain Rammed . | . . . . . Walls Destroyed . | . . . . . Machines Disabled . | . . . . . Actions | -11 -10 -10 -7 -5 --------- Run | Yrd Mat Sub Rec Fac Total 8204 | 66 1657 2909 1579 1993 Wait 774 | . 268 110 257 139 Move 6948 | 53 1236 2670 1222 1767 Hop 16 | . 15 1 . . Pick Up 15 | 1 9 . . 5 Fast Attach 18 | 5 5 3 1 4 Attach 4 | . 2 . . 2 Detach . | . . . . . Swap 19 | . 3 9 . 7 Drop 26 | 1 9 8 . 8 Fire 148 | 6 77 65 . . Melee . | . . . . . Ram . | . . . . . Kick . | . . . . . Crush . | . . . . . Escape Stasis . | . . . . . Rewire 84 | . . . 76 8 Trap . | . . . . . Miscellaneous 152 | . 33 43 23 53 Route ------- -11/Scrapyard -10/Materials (discovered 6 exits: [*Mat x3] / *Min x2 / *Sub) -10/Subcaves (discovered 3 exits: [*Mat x2] / *Rec) -7/Recycling -5/Factory (discovered 2 exits: [*Fac] / [*Upp]) History --------- Turn | Location | Event 7 | -11/Scrapyard | Upgraded with Power slot (x1) 7 | -11/Scrapyard | Upgraded with Propulsion slot (x1) 7 | -11/Scrapyard | Upgraded with Utility slot (x1) 7 | -11/Scrapyard | Upgraded with Weapon slot (x1) 18 | -11/Scrapyard | Discovered new exit (range 16) 56 | -11/Scrapyard | Entered Materials 87 | -10/Materials | Discovered new exit (range 3) 309 | -10/Materials | Build established: Mutant 334 | -10/Materials | Discovered new exit (range 13) 577 | -10/Materials | Reached level 2 577 | -10/Materials | Upgraded with Propulsion slot (x1) 577 | -10/Materials | Upgraded with Weapon slot (x1) 585 | -10/Materials | Discovered new exit (range 8) 648 | -10/Materials | Identified exit to Mines 656 | -10/Materials | Derelicts attacked the area 814 | -10/Materials | Reached level 3 822 | -10/Materials | Upgraded with Weapon slot (x1) 905 | -10/Materials | Discovered new exit (range 11) 932 | -10/Materials | Build established: Scavenger-Gunner 1079 | -10/Materials | Discovered new exit (range 11) 1082 | -10/Materials | Entered Subcaves 1083 | -10/Subcaves | Approached by a straggling Scientist 1084 | -10/Subcaves | Reached level 4 1084 | -10/Subcaves | Learned location of Zion (-6) 1085 | -10/Subcaves | Upgraded with Weapon slot (x1) 1087 | -10/Subcaves | Learned location of Storage (-7) 1189 | -10/Subcaves | Shifting Twisted Machinery released Spk. Treads 1193 | -10/Subcaves | Shifting Twisted Machinery released Spk. Treads 1203 | -10/Subcaves | Discovered new exit (range 14) 1209 | -10/Subcaves | Shifting Twisted Machinery released Riot Gun 1282 | -10/Subcaves | Shifting Twisted Machinery released Sub. Power Source 1349 | -10/Subcaves | Ambushed by Subdwellers from Twisted Machinery 1441 | -10/Subcaves | A swath of the cavern ceiling suddenly collapsed 1453 | -10/Subcaves | A swath of the cavern ceiling suddenly collapsed 1688 | -10/Subcaves | Visited Clippyterm 1690 | -10/Subcaves | Identified exit to Recycling 1721 | -10/Subcaves | Shifting Twisted Machinery released Shrapnel Trap 1819 | -10/Subcaves | Shifting Twisted Machinery released Sub. Shrapnel Launcher 2042 | -10/Subcaves | Discovered new exit (range 8) 2066 | -10/Subcaves | Visited 4L-MR0's lab 2136 | -10/Subcaves | Found Prototype Special Melee Weapon 2136 | -10/Subcaves | Identified 1B-0RG's Assimilator 2414 | -10/Subcaves | Assimilating 0L-QUN(R) into Collective. 2419 | -10/Subcaves | Assimilating OD-9Z3(R) into Collective. 2463 | -10/Subcaves | Build established: Scavenger-Mutant 2538 | -10/Subcaves | Assimilating Pest 1a into Collective. 2782 | -10/Subcaves | Assimilating 4L-MR0 into Collective. 3005 | -10/Subcaves | Assimilating Trooper 1a into Collective. 3200 | -10/Subcaves | Entered Recycling 3200 | -7/Recycling | Accompanied by 4 allies 3202 | -7/Recycling | Reached level 5 3203 | -7/Recycling | Assimilating Guardian 4a into Collective. 3206 | -7/Recycling | Upgraded with Propulsion slot (x1) 3284 | -7/Recycling | Assimilating Guardian 4b into Collective. 3310 | -7/Recycling | Lost 4 allies 3321 | -7/Recycling | Assimilating Guardian 4c into Collective. 3553 | -7/Recycling | Assimilating Hacker 4a into Collective. 3567 | -7/Recycling | Assimilating Hacker 4b into Collective. 3696 | -7/Recycling | Discovered new exit (range 8) 3937 | -7/Recycling | Build established: Commander-Mutant 3940 | -7/Recycling | Assimilating Transporter 4b into Collective. 4398 | -7/Recycling | Scanned before Scraplab entrance 4406 | -7/Recycling | Assimilating KB-UHX(j) into Collective. 4407 | -7/Recycling | Angered Scraplab inhabitants 4436 | -7/Recycling | Reached level 6 4507 | -7/Recycling | Assimilating Guardian 4d into Collective. 4681 | -7/Recycling | Assimilating Transporter 4a into Collective. 4805 | -7/Recycling | Entered Factory 4805 | -5/Factory | Accompanied by 13 allies 4807 | -5/Factory | Reached level 7 4837 | -5/Factory | Upgraded with Utility slot (x2) 5008 | -5/Factory | Lost 4 allies 5050 | -5/Factory | Assimilating Veteran 6a into Collective. 5054 | -5/Factory | Assimilating Soldier 6a into Collective. 5133 | -5/Factory | Assimilating Sentinel 6a into Collective. 5200 | -5/Factory | Assimilating Sentinel 6b into Collective. 5263 | -5/Factory | Reached level 8 5264 | -5/Factory | Upgraded with Propulsion slot (x1) 5276 | -5/Factory | Discovered new exit (range 14) 5318 | -5/Factory | Reached level 9 5365 | -5/Factory | Build established: Scavenger-Mutant 5453 | -5/Factory | Assimilating Soldier 6b into Collective. 5457 | -5/Factory | Garrison activated, responded to threat 5472 | -5/Factory | Reached level 10 5516 | -5/Factory | Upgraded with Propulsion slot (x1) 5528 | -5/Factory | Reached level 11 5688 | -5/Factory | Core integrity fell below 50% 5693 | -5/Factory | Reached level 12 5705 | -5/Factory | First assault squad dispatched 5820 | -5/Factory | Reached level 13 5833 | -5/Factory | Assimilating Sage 6a into Collective. 6058 | -5/Factory | Reached level 14 6078 | -5/Factory | Upgraded with Utility slot (x1) 6088 | -5/Factory | High security lockdown imminent 6140 | -5/Factory | Reached level 15 6168 | -5/Factory | High security lockdown engaged 6257 | -5/Factory | Assimilating Sentinel 6c into Collective. 6273 | -5/Factory | Assimilating Sentinel 6d into Collective. 6359 | -5/Factory | Lost 9 allies 6401 | -5/Factory | Assimilating Sentinel 6e into Collective. 6410 | -5/Factory | Assimilating Conveyor 6a into Collective. 6443 | -5/Factory | Discovered new exit (range 4) 6448 | -5/Factory | Assimilating Veteran 6c into Collective. 6451 | -5/Factory | Assimilating Soldier 6c into Collective. 6454 | -5/Factory | Assimilating Warrior 6a into Collective. 6457 | -5/Factory | Assimilating Soldier 6d into Collective. 6481 | -5/Factory | Self-destructed Last Messages --------------- Absorption Layer. 06472_ Borg Veteran 6c assimilation complete, grew Sfc. Borg Fist, Sfc. Personal Shield, Sfc. Impeller. 06473_ C-45 Heavy ARC bursts open, deploying its payload. 06473_ G-67 Veteran unfolds itself. 06473_ G-50 Soldier unfolds itself. 06473_ E-15 Imp unfolds itself. 06473_ E-15 Imp sneak attacks. 06473_ Borg Warrior 6a Imp. Treads blown off. 06473_ Borg Warrior 6a Imp. Medium Armor Plating blown off. 06473_ Borg Warrior 6a Hvy. Mace blown off. 06473_ E-15 Imp destroyed. 06474_ Borg Warrior 6a heat damages Imp. Treads. 06474_ G-50 Soldier destroyed. 06476_ Borg Warrior 6a assimilation complete, grew Sfc. Borg Laser, Sfc. Impeller. 06477_ Borg Soldier 6d assimilation complete, grew Sfc. Borg Laser (x2), Sfc. Absorption Layer. 06479_ Borg Warrior 6a heat damages core (-25). 06479_ Core damaged by loss of Borg Warrior 6a (-12). Map ----- +----------------------------------------------------+ | ??## ##??????# # #?# #?# #???? | | ### #??????# # """ ### ### #???? | | ######## # """ # # #???? | | # """ # #h#???? | | ## # + # #???? | | ### ## # # # #???? | | ########## # "" # # #???? | | #?# % # """ ## #???? | | #?# # "R ## #???? | | #?# # """ ## #???? | | #?# # """ ## #???? | | #?# # + #???? | | #?# ######## ######???? | | ### #??????# #????????? | | #?# #??????# #????????? | | #####+#### #??????# #########? | | ????# #??# #??????# ## != #? | | ??### #### #?#???## ## != #? | | ??# %## ###???# # =! #? | | ### %%= %= # ##### " + #? | | %%%*=!%! =%#=#=! # # ! #? | | ### = %*=%[!%!%=% < ## ##! #? | | #?# ######*![#[#*! ## #########? | | #?###+######### ##### ### #????????? | | #?# ##! #? #?# #????????? | | #?# """## "" #? #?#@#######??? | | #?# %!"""## """ #? #?# # ??? | | #?# *="""## """ ##Y#?# # """" ??? | | ###= ## ##g??# # """" ?? | | + ## # gl##g# """" ? | | ########### "T" #